fUSD/lending_fUSD_20240412
["ID","MTS","AMOUNT","RATE_DAILY","PERIOD"]
[322338283,1712956350107,-500.0,0.00048767,31]
[322338284,1712956350117,-500.0,0.00048767,31]
[322338285,1712956350128,-500.0,0.00048767,31]
[322338286,1712956350138,-500.0,0.00048767,31]
[322338287,1712956350148,-178.57,0.00048767,31]
[322338288,1712956350158,-527.76,0.00048767,31]
[322338289,1712956350168,-4040.59,0.00048767,31]
[322338290,1712956350178,-806.53,0.00048767,31]
[322338291,1712956350188,-500.0,0.00048767,31]
[322338292,1712956350198,-500.0,0.00048767,31]
[322338293,1712956350208,-1501.77,0.00048767,31]
[322338294,1712956350218,-500.0,0.00048767,31]
[322338295,1712956350227,-500.0,0.00048767,31]
[322338296,1712956350237,-500.0,0.00048767,31]
[322338297,1712956350247,-500.0,0.00048767,31]
[322338298,1712956350257,-167.98,0.00048767,31]
[322338299,1712956350267,-500.0,0.00048767,31]
[322338300,1712956350278,-582.04,0.00048767,31]
[322338301,1712956350287,-575.83,0.00048767,31]
[322338302,1712956350298,-500.0,0.00048767,31]
[322338303,1712956350307,-551.73808399,0.00048767,31]
[322338304,1712956350318,-433.75077352,0.00048767,31]
[322338305,1712956350331,-500.0,0.00048767,31]
[322338306,1712956350341,-500.0,0.00048767,31]
[322338307,1712956350351,-624.07,0.00048767,31]
[322338308,1712956350361,-583.16,0.00048767,31]
[322338309,1712956350372,-500.0,0.00048767,31]
[322338310,1712956350382,-500.0,0.00048767,31]
[322338311,1712956350392,-571.52,0.00048767,31]
[322338312,1712956350405,-500.0,0.00048767,31]
[322338313,1712956350414,-500.0,0.00048767,31]
[322338314,1712956350427,-500.0,0.00048767,31]
[322338315,1712956350437,-500.0,0.00048767,31]
[322338316,1712956350448,-805.36,0.00048767,31]
[322338317,1712956350458,-500.0,0.00048767,31]
[322338318,1712956350468,-500.0,0.00048767,31]
[322338319,1712956350477,-1458.26,0.00048767,31]
[322338320,1712956350487,-500.0,0.00048767,31]
[322338321,1712956350498,-500.0,0.00048767,31]
[322338322,1712956350509,-500.0,0.00048767,31]
[322338323,1712956350520,-500.0,0.00048767,31]
[322338324,1712956350530,-521.67,0.00048767,31]
[322338325,1712956350542,-500.0,0.00048767,31]
[322338326,1712956350556,-935.26,0.00048767,31]
[322338327,1712956350567,-1535.17,0.00048767,31]
[322338328,1712956350577,-500.0,0.00048767,31]
[322338329,1712956350587,-541.82,0.00048767,31]
[322338330,1712956350597,-774.55,0.00048767,31]
[322338331,1712956350608,-500.0,0.00048767,31]
[322338332,1712956350618,-500.0,0.00048767,31]
[322338333,1712956350628,-20341.84,0.00048767,31]
[322338334,1712956350637,-500.0,0.00048767,31]
[322338335,1712956350648,-1246.74,0.00048767,31]
[322338336,1712956351133,-500.0,0.00048767,31]
[322338337,1712956351152,-1608.86,0.00048767,31]
[322338338,1712956351165,-652.08,0.00048767,31]
[322338339,1712956351175,-500.0,0.00048767,31]
[322338340,1712956351185,-874.86,0.00048767,31]
[322338341,1712956351194,-500.0,0.00048767,31]
[322338342,1712956351204,-500.0,0.00048767,31]
[322338343,1712956351214,-536.89182856,0.00048767,31]
[322338344,1712956351224,-500.0,0.00048767,31]
[322338345,1712956351234,-1419.72,0.00048767,31]
[322338346,1712956351243,-500.0,0.00048767,31]
[322338347,1712956351253,-3646.35,0.00048767,31]
[322338348,1712956351262,-3711.37,0.00048767,31]
[322338349,1712956351272,-644.18,0.00048767,31]
[322338350,1712956351281,-207.1771664,0.00048767,31]
[322338351,1712956351291,-500.0,0.00048767,31]
[322338352,1712956351301,-500.0,0.00048767,31]
[322338353,1712956351310,-1230.23,0.00048767,31]
[322338354,1712956351321,-500.0,0.00048767,31]
[322338355,1712956351333,-529.81,0.00048767,31]
[322338356,1712956351343,-1773.86,0.00048767,31]
[322338357,1712956351353,-732.33,0.00048767,31]
[322338358,1712956351362,-2118.05,0.00048767,31]
[322338359,1712956351373,-645.62,0.00048767,31]
[322338360,1712956351383,-500.0,0.00048767,31]
[322338361,1712956351393,-546.03,0.00048767,31]
[322338362,1712956351403,-1198.72,0.00048767,31]
[322338363,1712956351413,-500.0,0.00048767,31]
[322338364,1712956351423,-2977.13,0.00048767,31]
[322338365,1712956351432,-500.0,0.00048767,31]
[322338366,1712956351442,-5708.25,0.00048767,31]
[322338367,1712956351451,-746.8,0.00048767,31]
[322338368,1712956351462,-500.0,0.00048767,31]
[322338369,1712956351472,-664.07,0.00048767,31]
[322338370,1712956351481,-500.0,0.00048767,31]
[322338371,1712956351491,-500.0,0.00048767,31]
[322338372,1712956351500,-1521.01,0.00048767,31]
[322338373,1712956351510,-2320.0,0.00048767,31]
[322338374,1712956351520,-706.82,0.00048767,31]
[322338375,1712956351530,-3679.13,0.00048767,31]
[322338376,1712956351540,-500.0,0.00048767,31]
[322338377,1712956351549,-15731.26,0.00048767,31]
[322338378,1712956351559,-1058.86,0.00048767,31]
[322338379,1712956351568,-521.02,0.00048767,31]
[322338380,1712956351578,-1703.15,0.00048767,31]
[322338381,1712956351588,-1166.54,0.00048767,31]
[322338382,1712956351598,-2094.0,0.00048767,31]
[322338383,1712956351609,-500.0,0.00048767,31]
[322338384,1712956351621,-2142.41,0.00048767,31]
[322338385,1712956351631,-500.0,0.00048767,31]
[322338386,1712956351642,-985.95,0.00048767,31]
[322338387,1712956351653,-937.11,0.00048767,31]
[322338388,1712956351663,-500.0,0.00048767,31]
[322338389,1712956351673,-500.0,0.00048767,31]
[322338390,1712956351683,-591.24,0.00048767,31]
[322338391,1712956351692,-691.8,0.00048767,31]
[322338392,1712956351702,-2120.81,0.00048767,31]
[322338393,1712956351711,-500.0,0.00048767,31]
[322338394,1712956351722,-534.15,0.00048767,31]
[322338395,1712956351731,-519.32966222,0.00048767,31]
[322338396,1712956351741,-512.64,0.00048767,31]
[322338397,1712956351751,-500.0,0.00048767,31]
[322338398,1712956351761,-812.89,0.00048767,31]
[322338399,1712956351771,-2419.16,0.00048767,31]
[322338400,1712956351781,-4130.71,0.00048767,31]
[322338401,1712956351790,-500.0,0.00048767,31]
[322338402,1712956351800,-3070.85,0.00048767,31]
[322338403,1712956351810,-500.0,0.00048767,31]
[322338404,1712956351819,-500.0,0.00048767,31]
[322338405,1712956351829,-756.68,0.00048767,31]
[322338406,1712956351839,-501.77,0.00048767,31]
[322338407,1712956351848,-500.0,0.00048767,31]
[322338408,1712956351859,-642.02,0.00048767,31]
[322338409,1712956351868,-679.55,0.00048767,31]
[322338410,1712956351878,-1182.46,0.00048767,31]
[322338411,1712956351888,-906.01,0.00048767,31]
[322338412,1712956351898,-718.33,0.00048767,31]
[322338413,1712956351907,-8113.01,0.00048767,31]
[322338414,1712956351917,-500.0,0.00048767,31]
[322338415,1712956351927,-500.0,0.00048767,31]
[322338416,1712956351936,-552.54,0.00048767,31]
[322338417,1712956351946,-1691.75,0.00048767,31]
[322338418,1712956351956,-796.65,0.00048767,31]
[322338419,1712956351966,-500.0,0.00048767,31]
[322338420,1712956351976,-500.0,0.00048767,31]
[322338421,1712956351986,-500.0,0.00048767,31]
[322338422,1712956351996,-1931.38,0.00048767,31]
[322338423,1712956352005,-1038.17,0.00048767,31]
[322338424,1712956352015,-500.0,0.00048767,31]
[322338425,1712956352025,-1909.8,0.00048767,31]
[322338426,1712956352035,-552.81808048,0.00048767,31]
[322338427,1712956352044,-500.0,0.00048767,31]
[322338428,1712956352054,-500.0,0.00048767,31]
[322338429,1712956352063,-1375.31,0.00048767,31]
[322338430,1712956352073,-500.0,0.00048767,31]
[322338431,1712956352083,-500.0,0.00048767,31]
[322338432,1712956352093,-3128.79,0.00048767,31]
[322338433,1712956352104,-2327.1,0.00048767,31]
[322338434,1712956352114,-18182.37,0.00048767,31]
[322338435,1712956352124,-500.0,0.00048767,31]
[322338436,1712956352134,-629.74,0.00048767,31]
[322338437,1712956352143,-6035.47,0.00048767,31]
[322338438,1712956352153,-2577.26,0.00048767,31]
[322338439,1712956352172,-500.0,0.00048767,31]
[322338440,1712956352184,-500.0,0.00048767,7]
[322338441,1712956352195,-1143.56,0.00048767,31]
[322338442,1712956352206,-4212.38,0.00048767,31]
[322338443,1712956352216,-709.5,0.00048767,31]
[322338444,1712956352226,-688.0,0.00048767,31]
[322338445,1712956352237,-500.0,0.00048767,31]
[322338446,1712956352247,-1251.78,0.00048767,31]
[322338447,1712956352258,-500.0,0.00048767,31]
[322338448,1712956352268,-1227.56,0.00048767,31]
[322338449,1712956352279,-500.0,0.00048767,31]
[322338450,1712956352289,-500.0,0.00048767,31]
[322338451,1712956352299,-579.98,0.00048767,31]
[322338452,1712956352309,-962.14,0.00048767,31]
[322338453,1712956352320,-526.36,0.00048767,31]
[322338454,1712956352331,-500.0,0.00048767,31]
[322338455,1712956352342,-500.0,0.00048767,31]
[322338456,1712956352354,-595.87,0.00048767,2]
[322338457,1712956352364,-500.0,0.00048767,31]
[322338458,1712956352374,-15043.16,0.00048767,31]
[322338459,1712956352384,-500.0,0.00048767,31]
[322338460,1712956352394,-3922.55,0.00048767,31]
[322338461,1712956352405,-500.0,0.00048767,31]
[322338462,1712956352415,-1614.08,0.00048767,31]
[322338463,1712956352425,-500.0,0.00048767,31]
[322338464,1712956352436,-529.92,0.00048767,31]
[322338465,1712956352446,-500.0,0.00048767,31]
[322338466,1712956352456,-553.84975544,0.00048767,31]
[322338467,1712956352465,-680.34,0.00048767,31]
[322338468,1712956352475,-5579.77,0.00048767,31]
[322338469,1712956352485,-326.57666123,0.00048767,31]
[322338470,1712956352730,-173.42333877,0.00048767,31]
[322338471,1712956352740,-500.0,0.00048767,31]
[322338472,1712956352750,-500.0,0.00048767,31]
[322338473,1712956352760,-500.0,0.00048767,31]
[322338474,1712956352770,-500.0,0.00048767,31]
[322338475,1712956352779,-500.0,0.00048767,31]
[322338476,1712956352789,-423.22379348,0.00048767,31]
[322338477,1712956352803,-2156.38,0.00048767,31]
[322338478,1712956352812,-500.0,0.00048767,31]
[322338479,1712956352823,-1171.95,0.00048767,31]
[322338480,1712956352833,-500.0,0.00048767,31]
[322338481,1712956352843,-818.6,0.00048767,31]
[322338482,1712956352853,-1005.81,0.00048767,31]
[322338483,1712956352863,-2445.94,0.00048767,31]
[322338484,1712956352873,-500.0,0.00048767,31]
[322338485,1712956352883,-1566.16,0.00048767,31]
[322338486,1712956352894,-1512.58,0.00048767,31]
[322338487,1712956352904,-3625.83,0.00048767,31]
[322338488,1712956352914,-500.0,0.00048767,31]
[322338489,1712956352924,-500.0,0.00048767,31]
[322338490,1712956352935,-542.02,0.00048767,31]
[322338491,1712956352945,-1559.05,0.00048767,31]
[322338492,1712956352955,-500.0,0.00048767,31]
[322338493,1712956352964,-377.11801917,0.00048767,31]
[322338494,1712956352974,-500.0,0.00048767,31]
[322338495,1712956352983,-1365.13,0.00048767,31]
[322338496,1712956352993,-500.0,0.00048767,31]
[322338497,1712956353002,-1937.56,0.00048767,31]
[322338498,1712956353011,-500.0,0.00048767,31]
[322338499,1712956353020,-500.0,0.00048767,31]
[322338500,1712956353029,-2496.98,0.00048767,31]
[322338501,1712956353039,-553.72,0.00048767,31]
[322338502,1712956353048,-500.0,0.00048767,31]
[322338503,1712956353058,-500.0,0.00048767,31]
[322338504,1712956353067,-1304.68,0.00048767,31]
[322338505,1712956353077,-500.0,0.00048767,31]
[322338506,1712956353086,-388.88329271,0.00048767,31]
[322338507,1712956353096,-500.0,0.00048767,31]
[322338508,1712956353105,-1112.77,0.00048767,31]
[322338509,1712956353114,-500.0,0.00048767,31]
[322338510,1712956353124,-500.0,0.00048767,31]
[322338511,1712956353133,-1261.76,0.00048767,31]
[322338512,1712956353142,-500.0,0.00048767,31]
[322338513,1712956353151,-500.0,0.00048767,31]
[322338514,1712956353161,-2651.19,0.00048767,31]
[322338515,1712956353171,-1175.23,0.00048767,31]
[322338516,1712956353181,-653.52,0.00048767,31]
[322338517,1712956353190,-1934.28,0.00048767,21]
[322338518,1712956353199,-500.0,0.00048767,31]
[322338519,1712956353209,-854.38,0.00048767,31]
[322338520,1712956353219,-500.0,0.00048767,31]
[322338521,1712956353229,-1683.6,0.00048767,31]
[322338522,1712956353238,-829.4,0.00048767,31]
[322338523,1712956353247,-500.0,0.00048767,31]
[322338524,1712956353257,-500.0,0.00048767,31]
[322338525,1712956353266,-1255.75,0.00048767,31]
[322338526,1712956353276,-500.0,0.00048767,31]
[322338527,1712956353286,-526.0,0.00048824,30]
[322338528,1712956353296,-297.0,0.00048824,30]
[322338529,1712956353305,-368.0,0.00048824,30]
[322338530,1712956353314,-1500.0,0.00048923,30]
[322338531,1712956353328,-500.0,0.00048923,30]
[322338532,1712956353341,-26012.0734,0.00048923,2]
[322338533,1712956353352,-26012.0734,0.00048923,2]
[322338534,1712956353361,-26012.0734,0.00048923,2]
[322338535,1712956353371,-26012.0734,0.00048923,2]
[322338536,1712956353381,-26012.0734,0.00048923,2]
[322338537,1712956353391,-503.06,0.00048986,15]
[322338538,1712956353490,-100000.0,0.00049,49]
[322338539,1712956353499,-3880.50089951,0.00049,120]
[322338540,1712956353508,-60609.88370481,0.00049,5]
[322338541,1712956353517,-150.0,0.00049,90]
[322338542,1712956353526,-729.92700237,0.00049,120]
[322338543,1712956353535,-1000.0,0.00049,120]
[322338544,1712956353544,-950.0,0.00049,3]
[322338545,1712956353554,-23305.00153848,0.00049,30]
[322338546,1712956353563,-150.0,0.00049,9]
[322338547,1712956353571,-1083.9699649,0.00049008,2]
[322338548,1712956353581,-4310.6908473,0.00049008,2]
[322338549,1712956353590,-52540.3767631,0.00049008,2]
[322338550,1712956353599,-2428.2338954,0.00049008,2]
[322338551,1712956353608,-279.8909902,0.00049008,2]
[322338552,1712956353617,-150.0,0.00049017,120]
[322338553,1712956353626,-500.0,0.00049041,31]
[322338554,1712956353636,-500.0,0.00049041,31]
[322338555,1712956353645,-198.67,0.00049041,31]
[322338556,1712956353654,-645.14,0.00049041,31]
[322338557,1712956353663,-500.0,0.00049041,31]
[322338558,1712956353672,-500.0,0.00049041,31]
[322338559,1712956353682,-500.0,0.00049041,31]
[322338560,1712956353691,-500.0,0.00049041,31]
[322338561,1712956353701,-500.0,0.00049041,2]
[322338562,1712956353712,-249.03,0.00049041,31]
[322338563,1712956353722,-500.0,0.00049041,31]
[322338564,1712956353732,-256.58984066,0.00049041,31]
[322338565,1712956353742,-500.0,0.00049041,31]
[322338566,1712956353751,-239.55,0.00049041,31]
[322338567,1712956353762,-500.0,0.00049041,31]
[322338568,1712956353771,-500.0,0.00049041,31]
[322338569,1712956353781,-422.50803227,0.00049041,31]
[322338570,1712956353791,-500.0,0.00049041,31]
[322338571,1712956353800,-500.0,0.00049041,31]
[322338572,1712956353810,-500.0,0.00049041,31]
[322338573,1712956353819,-500.0,0.00049041,31]
[322338574,1712956353829,-500.0,0.00049041,31]
[322338575,1712956353839,-500.0,0.00049041,31]
[322338576,1712956353848,-500.0,0.00049041,31]
[322338577,1712956353859,-500.0,0.00049041,31]
[322338578,1712956353868,-500.0,0.00049041,31]
[322338579,1712956353877,-500.0,0.00049041,31]
[322338580,1712956353887,-500.0,0.00049041,31]
[322338581,1712956353897,-500.0,0.00049041,31]
[322338582,1712956353907,-500.0,0.00049041,31]
[322338583,1712956353917,-500.0,0.00049041,31]
[322338584,1712956353927,-500.0,0.00049041,31]
[322338585,1712956353937,-300.41,0.00049041,31]
[322338586,1712956353947,-466.72,0.00049041,31]
[322338587,1712956353957,-500.0,0.00049041,31]
[322338588,1712956353967,-500.0,0.00049041,31]
[322338589,1712956353977,-391.54,0.00049041,31]
[322338590,1712956353986,-500.0,0.00049041,31]
[322338591,1712956353996,-500.0,0.00049041,31]
[322338592,1712956354006,-500.0,0.00049041,31]
[322338593,1712956354016,-276.41609489,0.00049041,31]
[322338594,1712956354026,-214.43,0.00049041,31]
[322338595,1712956354035,-500.0,0.00049041,31]
[322338596,1712956354046,-622.99,0.00049041,31]
[322338597,1712956354055,-500.0,0.00049041,31]
[322338598,1712956354066,-500.0,0.00049041,31]
[322338599,1712956354076,-500.0,0.00049041,31]
[322338600,1712956354086,-500.0,0.00049041,31]
[322338601,1712956354097,-566.24,0.00049041,31]
[322338602,1712956354108,-624.09,0.00049041,31]
[322338603,1712956354118,-500.0,0.00049041,31]
[322338604,1712956354128,-881.55,0.00049041,31]
[322338605,1712956354138,-500.0,0.00049041,31]
[322338606,1712956354148,-1078.5,0.00049041,31]
[322338607,1712956354157,-500.0,0.00049041,31]
[322338608,1712956354166,-500.0,0.00049041,31]
[322338609,1712956354176,-644.11,0.00049041,31]
[322338610,1712956354185,-500.0,0.00049041,31]
[322338611,1712956354195,-500.0,0.00049041,31]
[322338612,1712956354204,-500.0,0.00049041,31]
[322338613,1712956354214,-842.52,0.00049041,31]
[322338614,1712956354223,-500.0,0.00049041,31]
[322338615,1712956354232,-500.0,0.00049041,31]
[322338616,1712956354242,-1068.41,0.00049041,31]
[322338617,1712956354252,-500.0,0.00049041,31]
[322338618,1712956354261,-402.45753895,0.00049041,31]
[322338619,1712956354271,-185.94,0.00049041,31]
[322338620,1712956354282,-520.91296235,0.00049041,31]
[322338621,1712956354292,-500.0,0.00049041,31]
[322338622,1712956354303,-500.0,0.00049041,31]
[322338623,1712956354314,-523.4,0.00049041,31]
[322338624,1712956354325,-500.0,0.00049041,31]
[322338625,1712956354337,-500.0,0.00049041,31]
[322338626,1712956354347,-500.0,0.00049041,31]
[322338627,1712956354358,-500.0,0.00049041,31]
[322338628,1712956354368,-500.0,0.00049041,31]
[322338629,1712956354379,-788.97,0.00049041,31]
[322338630,1712956354388,-500.0,0.00049041,31]
[322338631,1712956354398,-500.0,0.00049041,31]
[322338632,1712956354409,-500.0,0.00049041,31]
[322338633,1712956354419,-561.46,0.00049041,31]
[322338634,1712956354428,-466.75136767,0.00049041,31]
[322338635,1712956354438,-500.0,0.00049041,31]
[322338636,1712956354448,-500.0,0.00049041,31]
[322338637,1712956354458,-613.88,0.00049041,31]
[322338638,1712956354468,-500.0,0.00049041,31]
[322338639,1712956354478,-500.0,0.00049041,31]
[322338640,1712956354487,-223.43122649,0.00049041,31]
[322338641,1712956354498,-363.62,0.00049041,31]
[322338642,1712956354507,-773.28,0.00049041,31]
[322338643,1712956354517,-500.0,0.00049041,31]
[322338644,1712956354526,-500.0,0.00049041,31]
[322338645,1712956354535,-500.0,0.00049041,31]
[322338646,1712956354545,-500.0,0.00049041,31]
[322338647,1712956354554,-500.0,0.00049041,31]
[322338648,1712956354564,-531.65,0.00049041,31]
[322338649,1712956354573,-500.0,0.00049041,31]
[322338650,1712956354583,-644.29,0.00049041,31]
[322338651,1712956354593,-611.94,0.00049041,31]
[322338652,1712956354603,-200.66,0.00049041,31]
[322338653,1712956354612,-500.0,0.00049041,31]
[322338654,1712956354621,-500.0,0.00049041,31]
[322338655,1712956354631,-500.0,0.00049041,31]
[322338656,1712956354641,-654.94,0.00049041,31]
[322338657,1712956354651,-500.0,0.00049041,31]
[322338658,1712956354660,-500.0,0.00049041,31]
[322338659,1712956354669,-500.0,0.00049041,31]
[322338660,1712956354678,-430.76,0.00049041,31]
[322338661,1712956354688,-265.15334787,0.00049041,31]
[322338662,1712956354697,-500.0,0.00049041,31]
[322338663,1712956354706,-562.36,0.00049041,31]
[322338664,1712956354716,-500.0,0.00049041,31]
[322338665,1712956354726,-500.0,0.00049041,31]
[322338666,1712956354736,-500.0,0.00049041,31]
[322338667,1712956354746,-752.36,0.00049041,31]
[322338668,1712956354755,-500.0,0.00049041,31]
[322338669,1712956354765,-500.0,0.00049041,31]
[322338670,1712956354774,-509.95,0.00049041,31]
[322338671,1712956354783,-584.48,0.00049041,31]
[322338672,1712956354792,-500.0,0.00049041,31]
[322338673,1712956354801,-500.0,0.00049041,5]
[322338674,1712956354810,-500.0,0.00049041,31]
[322338675,1712956354820,-500.0,0.00049041,31]
[322338676,1712956354829,-500.0,0.00049041,31]
[322338677,1712956354838,-500.0,0.00049041,31]
[322338678,1712956354847,-1017.86,0.00049041,31]
[322338679,1712956354857,-500.0,0.00049041,31]
[322338680,1712956354866,-500.0,0.00049041,31]
[322338681,1712956354875,-500.0,0.00049041,31]
[322338682,1712956354884,-500.0,0.00049041,31]
[322338683,1712956354893,-500.0,0.00049041,31]
[322338684,1712956354902,-612.8,0.00049041,31]
[322338685,1712956354912,-500.0,0.00049041,31]
[322338686,1712956354922,-287.87,0.00049041,31]
[322338687,1712956354931,-665.37,0.00049041,31]
[322338688,1712956354940,-500.0,0.00049041,31]
[322338689,1712956354950,-439.54457019,0.00049041,31]
[322338690,1712956354959,-427.75,0.00049041,31]
[322338691,1712956354968,-500.0,0.00049041,31]
[322338692,1712956354977,-500.0,0.00049041,31]
[322338693,1712956354987,-500.0,0.00049041,31]
[322338694,1712956354996,-207.21,0.00049041,31]
[322338695,1712956355006,-500.0,0.00049041,31]
[322338696,1712956355016,-500.0,0.00049041,31]
[322338697,1712956355026,-500.0,0.00049041,31]
[322338698,1712956355036,-500.0,0.00049041,31]
[322338699,1712956355046,-500.0,0.00049041,31]
[322338700,1712956355056,-508.01,0.00049041,31]
[322338701,1712956355066,-213.23,0.00049041,31]
[322338702,1712956355077,-786.37,0.00049041,31]
[322338703,1712956355087,-500.0,0.00049041,31]
[322338704,1712956355096,-777.13,0.00049041,31]
[322338705,1712956355107,-1047.03,0.00049041,31]
[322338706,1712956355117,-500.0,0.00049041,31]
[322338707,1712956355127,-500.0,0.00049041,31]
[322338708,1712956355136,-551.41,0.00049041,31]
[322338709,1712956355145,-221.1814054,0.00049041,2]
[322338710,1712956355153,-500.0,0.00049041,31]
[322338711,1712956355162,-619.8,0.00049041,31]
[322338712,1712956355171,-316.84,0.00049041,31]
[322338713,1712956355181,-590.98,0.00049041,31]
[322338714,1712956355190,-500.0,0.00049041,31]
[322338715,1712956355200,-500.0,0.00049041,31]
[322338716,1712956355210,-500.0,0.00049041,31]
[322338717,1712956355219,-500.0,0.00049041,31]
[322338718,1712956355229,-500.0,0.00049041,31]
[322338719,1712956355239,-500.0,0.00049041,31]
[322338720,1712956355249,-500.0,0.00049041,31]
[322338721,1712956355259,-328.42042049,0.00049041,31]
[322338722,1712956355268,-517.52,0.00049041,31]
[322338723,1712956355278,-500.0,0.00049041,31]
[322338724,1712956355288,-500.0,0.00049041,31]
[322338725,1712956355299,-500.0,0.00049041,31]
[322338726,1712956355308,-571.13,0.00049041,31]
[322338727,1712956355318,-500.0,0.00049041,31]
[322338728,1712956355331,-500.0,0.00049041,31]
[322338729,1712956355340,-620.52,0.00049041,31]
[322338730,1712956355350,-717.8,0.00049041,31]
[322338731,1712956355360,-676.11,0.00049041,31]
[322338732,1712956355370,-500.0,0.00049041,31]
[322338733,1712956355380,-500.0,0.00049041,31]
[322338734,1712956355390,-500.0,0.00049041,31]
[322338735,1712956355399,-696.14,0.00049041,31]
[322338736,1712956355410,-500.0,0.00049041,31]
[322338737,1712956355420,-681.42,0.00049041,31]
[322338738,1712956355430,-500.0,0.00049041,31]
[322338739,1712956355439,-500.0,0.00049041,31]
[322338740,1712956355449,-562.73557264,0.00049041,31]
[322338741,1712956355458,-500.0,0.00049041,31]
[322338742,1712956355468,-500.0,0.00049041,31]
[322338743,1712956355478,-643.83,0.00049041,31]
[322338744,1712956355487,-592.9120938,0.00049041,31]
[322338745,1712956355497,-500.0,0.00049041,31]
[322338746,1712956355507,-152.98,0.00049041,31]
[322338747,1712956355516,-1817.19,0.00049041,31]
[322338748,1712956355525,-500.0,0.00049041,31]
[322338749,1712956355535,-528.07,0.00049041,31]
[322338750,1712956355544,-519.91,0.00049041,31]
[322338751,1712956355554,-500.0,0.00049041,31]
[322338752,1712956355564,-235.96,0.00049041,31]
[322338753,1712956355573,-500.0,0.00049041,31]
[322338754,1712956355582,-500.0,0.00049041,31]
[322338755,1712956355592,-665.13,0.00049041,31]
[322338756,1712956355601,-500.0,0.00049041,31]
[322338757,1712956355611,-500.0,0.00049041,31]
[322338758,1712956355621,-500.0,0.00049041,31]
[322338759,1712956355631,-500.0,0.00049041,31]
[322338760,1712956355640,-500.0,0.00049041,31]
[322338761,1712956355649,-8352.31,0.00049041,31]
[322338762,1712956355659,-500.0,0.00049041,31]
[322338763,1712956355668,-222.81,0.00049041,31]
[322338764,1712956355678,-649.27,0.00049041,31]
[322338765,1712956355688,-791.6,0.00049041,31]
[322338766,1712956355698,-500.0,0.00049041,31]
[322338767,1712956355707,-500.0,0.00049041,31]
[322338768,1712956355717,-511.51,0.00049041,7]
[322338769,1712956355726,-1945.07,0.00049041,31]
[322338770,1712956355736,-684.24,0.00049041,31]
[322338771,1712956355745,-674.93,0.00049041,31]
[322338772,1712956355755,-500.0,0.00049041,31]
[322338773,1712956355765,-1181.86,0.00049041,31]
[322338774,1712956355775,-500.0,0.00049041,31]
[322338775,1712956355784,-500.0,0.00049041,31]
[322338776,1712956355793,-500.0,0.00049041,31]
[322338777,1712956355803,-500.0,0.00049041,31]
[322338778,1712956355813,-696.23,0.00049041,31]
[322338779,1712956355823,-289.08,0.00049041,31]
[322338780,1712956355833,-506.72165418,0.00049041,31]
[322338781,1712956355842,-1356.46,0.00049041,31]
[322338782,1712956355852,-500.0,0.00049041,31]